bitfinex-derivatives/quotes_SOLF0:USTF0_20250310
["timestamp","ask_amount","ask_price","bid_price","bid_amount"]
[1741637112053,0.06279756,120.14,120.11,0.05689682]
[1741637113350,8.3306,120.12,120.11,0.05689682]
[1741637113554,64.47224246,120.13,120.03,3.0091]
[1741637113746,64.47224246,120.13,120.03,54.3491]
[1741637114354,8.3308,120.12,120.05,8.335]
[1741637114553,1.44948664,120.14,120.03,54.3491]
[1741637114759,8.38755865,120.1,120.07,0.05735399]
[1741637115259,8.39452541,120.1,120.07,0.05510571]
[1741637115460,8.39462541,120.1,120.07,0.05510571]
[1741637116055,0.06252541,120.1,120.07,0.05510571]
[1741637116556,8.39512541,120.1,120.07,0.05510571]
[1741637116754,0.06252541,120.1,120.07,0.05510571]
[1741637116956,275.02252541,120.1,120.03,5.6605]
[1741637118058,275.02252541,120.1,120.04,51.3]
[1741637118059,0.06252541,120.1,120.04,51.3]
[1741637118455,0.06252541,120.1,120.06,0.06206113]
[1741637118659,64.53476787,120.1,120.06,0.06206113]
[1741637119854,64.47224246,120.08,120.06,6.113e-05]
[1741637120462,8.3372,120.03,119.98,8.3399]
[1741637121049,90.8996363,120.07,119.97,59.2384]
[1741637121256,0.05446161,120.03,120.01,0.06143164]
[1741637121565,274.94,120.02,119.91,90.8996363]
[1741637121757,274.94,120.02,119.92,7.6719]
[1741637121958,8.3393,120.0,119.95,8.3418]
[1741637122260,274.94,120.02,119.95,8.3418]
[1741637122461,8.3394,120.0,119.95,8.342]
[1741637122660,274.94,120.02,119.92,72.07934323]
[1741637122859,0.05651788,119.99,119.96,0.05971419]
[1741637123060,8.3409,119.98,119.96,0.05971419]
[1741637123361,0.05651788,119.99,119.96,0.05971419]
[1741637123563,8.39661788,119.99,119.96,0.05971419]
[1741637124057,0.05651788,119.99,119.96,8.40131419]
[1741637124761,0.05651788,119.99,119.96,0.05971419]
[1741637126665,8.341,119.97,119.96,0.05971419]
[1741637126964,0.05651788,119.99,119.96,0.05971419]
[1741637127163,8.3407,119.98,119.96,0.05971419]
[1741637127864,0.05651788,119.99,119.96,0.05971419]
[1741637128464,8.39651788,119.99,119.96,0.05971419]
[1741637128664,0.05651788,119.99,119.96,0.05971419]
[1741637129065,0.05651788,119.99,119.96,8.40121419]
[1741637129373,0.05651788,119.99,119.96,0.05971419]
[1741637129869,0.05651788,119.99,119.97,8.3407]
[1741637130057,0.05651788,119.99,119.96,0.05971419]
[1741637130255,8.3364,120.04,119.96,51.31971419]
[1741637130463,8.3364,120.04,119.96,51.26]
[1741637130659,275.08,120.07,119.97,64.40744323]
[1741637130864,8.3352,120.06,119.97,64.40744323]
[1741637131271,275.08,120.07,119.99,64.40744323]
[1741637131466,275.08,120.07,120.0,5.2496]
[1741637131665,0.0621773,120.03,120.0,5.31132716]
[1741637131861,275.08,120.07,120.0,5.31132716]
[1741637132067,8.3348,120.06,120.0,5.31132716]
[1741637132268,275.08,120.07,120.0,5.31132716]
[1741637132467,8.3353,120.06,120.02,8.3372]
[1741637132667,344.08214323,120.12,120.01,64.40744323]
[1741637132865,393.12604323,120.12,120.01,64.40744323]
[1741637133063,0.05709089,120.08,120.05,0.056385]
[1741637134174,0.05709089,120.08,120.06,8.3343]
[1741637134374,0.05709089,120.08,120.05,0.056385]
[1741637134570,20.81,120.09,120.05,0.056385]
[1741637135669,0.05726782,120.08,120.05,0.056385]
[1741637136173,0.05726782,120.08,120.07,8.3341]
[1741637136565,0.05726782,120.08,120.06,8.3344]
[1741637136770,0.05726782,120.08,120.05,0.056385]
[1741637137371,0.05726782,120.08,120.07,8.3341]
[1741637138082,0.05726782,120.08,120.05,0.056385]
[1741637138374,8.39076782,120.08,120.05,0.056385]
[1741637138574,0.05726782,120.08,120.05,0.056385]
[1741637138875,20.81,120.09,120.05,0.056385]
[1741637139074,20.81,120.09,120.06,8.3344]
[1741637139272,8.3348,120.06,120.05,0.056385]
[1741637139575,20.81,120.09,120.05,0.056385]
[1741637140070,8.3348,120.06,120.05,0.056385]
[1741637140680,64.46963117,120.08,119.96,89.29397753]
[1741637140873,64.46963117,120.08,119.97,51.2]
[1741637141075,64.40744323,120.06,119.99,8.3392]
[1741637141376,8.3365,120.04,119.97,51.2]
[1741637141579,51.18,120.06,119.97,51.2]
[1741637141778,8.3372,120.03,119.99,8.3395]
[1741637141980,8.3372,120.03,120.02,0.06293005]
[1741637143168,0.05245963,120.04,120.02,0.06293005]
[1741637143781,0.05245963,120.04,120.02,8.40033005]
[1741637144074,0.05245963,120.04,120.02,0.06293005]
[1741637145574,0.05245963,120.04,120.02,8.40003005]
[1741637145780,0.05245963,120.04,120.02,0.06293005]
[1741637146079,0.05245963,120.04,120.03,8.3369]
[1741637146581,41.6444,120.07,120.04,8.336]
[1741637146782,33.31,120.07,120.02,0.06293005]
[1741637147180,8.3369,120.03,120.02,0.06293005]
[1741637147379,33.31,120.07,120.02,0.06293005]
[1741637147683,8.3366,120.04,120.02,0.06293005]
[1741637147878,0.06001219,120.06,120.02,0.06293005]
[1741637148774,8.39511219,120.06,120.03,8.3365]
[1741637148978,0.06001219,120.06,120.03,8.3365]
[1741637149376,0.06001219,120.06,120.02,51.22293005]
[1741637150986,0.06001219,120.06,120.04,8.3357]
[1741637151182,0.06001219,120.06,120.02,51.22293005]
[1741637151486,0.06001219,120.06,120.04,8.3357]
[1741637151784,0.06001219,120.06,120.02,51.22293005]
[1741637151977,0.06001219,120.06,120.05,8.3355]
[1741637152377,0.06001219,120.06,120.02,51.22293005]
[1741637152578,0.06001219,120.06,120.03,8.3367]
[1741637152779,0.06001219,120.06,120.02,51.22293005]
[1741637153083,90.80340333,120.06,120.02,0.06293005]
[1741637153279,39.60339114,120.04,119.95,4.7789]
[1741637153481,39.60339114,120.0,119.94,143.57811521]
[1741637153680,51.12,119.99,119.94,143.57811521]
[1741637153877,96.54,119.99,119.94,143.57811521]
[1741637154286,0.05615255,119.98,119.94,143.57811521]
[1741637154585,0.05615255,119.98,119.95,0.06107235]
[1741637154985,275.05615255,119.98,119.95,0.06107235]
[1741637155187,8.3417,119.97,119.95,0.06107235]
[1741637155782,314.65954369,119.98,119.95,0.06107235]
[1741637155985,314.65954369,119.98,119.89,4.7789]
[1741637156286,275.0,119.98,119.89,4.7789]
[1741637156483,275.0,119.98,119.9,51.12]
[1741637156883,8.3414,119.97,119.9,51.12]
[1741637157083,0.06219151,119.95,119.93,0.05561912]
[1741637161583,0.06219151,119.95,119.89,4.7789]
[1741637161786,90.76558265,119.95,119.89,4.7789]
[1741637162091,39.60339114,119.93,119.89,4.7789]
[1741637162279,0.06219151,119.95,119.89,4.7789]
[1741637162484,8.3414,119.97,119.89,4.7789]
[1741637162684,326.12,119.98,119.91,0.06016914]
[1741637162685,0.06337439,119.93,119.91,0.06016914]
[1741637162881,326.12,119.98,119.91,0.06016914]
[1741637163194,0.05369946,119.93,119.91,0.06016914]
[1741637163391,8.3436,119.94,119.91,0.06016914]
[1741637163585,326.12,119.98,119.91,0.06016914]
[1741637163586,0.06124205,119.93,119.91,0.06016914]
[1741637163790,326.1,119.98,119.91,0.06016914]
[1741637163992,0.06363312,119.93,119.91,0.06016914]
[1741637164188,39.60339114,119.95,119.91,0.06016914]
[1741637164391,0.06009004,119.93,119.91,0.06016914]
[1741637164988,0.06009004,119.93,119.92,8.3445]
[1741637165390,283.3407,119.98,119.94,8.3431]
[1741637165591,275.0,119.98,119.89,4.7789]
[1741637166096,8.342,119.96,119.92,8.3439]
[1741637166292,275.0,119.98,119.89,4.7789]
[1741637166492,275.0,119.98,119.92,0.05829329]
[1741637166693,0.05696122,119.95,119.93,8.3432]
[1741637166995,0.05696122,119.95,119.92,0.05829329]
[1741637167196,0.05696122,119.95,119.93,8.3434]
[1741637167397,0.05696122,119.95,119.92,51.15829329]
[1741637167696,0.05696122,119.95,119.94,8.3431]
[1741637167900,45.42,119.99,119.92,51.15829329]
[1741637168302,53.76,119.99,119.96,8.3413]
[1741637168693,45.42,119.99,119.96,8.3413]
[1741637168997,45.48202766,119.99,119.96,0.05932393]
[1741637169398,45.48202766,119.99,119.97,8.3408]
[1741637169900,45.48202766,119.99,119.96,0.05932393]
[1741637170898,45.48202766,119.99,119.97,8.341]
[1741637171098,45.48202766,119.99,119.96,0.05932393]
[1741637171297,53.82202766,119.99,119.96,0.05932393]
[1741637171596,53.82202766,119.99,119.96,8.40052393]
[1741637171802,45.48202766,119.99,119.96,0.05932393]
[1741637172101,45.48202766,119.99,119.97,8.3407]
[1741637172293,45.48202766,119.99,119.96,0.05932393]
[1741637172501,45.48202766,119.99,119.98,8.3403]
[1741637173906,32.27,120.01,120.0,8.339]
[1741637175007,71.87339114,120.01,119.99,0.05416729]
[1741637175212,8.3415,119.97,119.88,56.29759114]
[1741637175513,8.3415,119.97,119.89,51.06]
[1741637175713,33.34,119.96,119.89,51.06]
[1741637175915,33.34,119.96,119.91,8.3447]
[1741637176211,33.34,119.96,119.89,51.06]
[1741637176409,0.06024843,119.95,119.92,0.05579424]
[1741637176609,0.06024843,119.95,119.94,8.3425]
[1741637177513,0.06024843,119.95,119.93,51.06]
[1741637177916,29.4604,119.96,119.93,51.06]
[1741637178113,29.40623271,119.96,119.93,51.06]
[1741637179114,29.45972989,119.96,119.94,8.3427]
[1741637179316,29.45972989,119.96,119.93,51.06]
[1741637179713,29.45972989,119.96,119.95,8.3424]
[1741637180517,10.47592989,119.96,119.95,8.3424]
[1741637180913,2.989e-05,119.96,119.95,8.3424]
[1741637181120,10.6783,120.04,119.95,2.5]
[1741637181307,2.3419,120.04,119.96,39.60339114]
[1741637181516,2.3419,120.04,119.97,51.02]
[1741637182216,0.05269831,120.02,119.99,0.05301966]
[1741637182818,8.3383,120.01,119.99,0.05301966]
[1741637183119,0.05269831,120.02,119.99,0.05301966]
[1741637184117,39.65608945,120.02,119.99,0.05301966]
[1741637184323,8.3415,119.97,119.88,39.60339114]
[1741637184519,8.3415,119.97,119.9,2.4369]
[1741637184818,4.8191,119.99,119.9,53.4369]
[1741637185410,8.40390955,119.96,119.93,0.06176169]
[1741637185610,0.06180955,119.96,119.86,128.89736867]
[1741637185920,8.3457,119.91,119.86,148.64237753]
[1741637186221,39.60339114,119.94,119.86,89.29397753]
[1741637186423,39.60339114,119.94,119.85,2.4369]
[1741637186615,8.3457,119.91,119.86,8.3483]
[1741637186815,0.0566126,119.91,119.88,0.06258466]
[1741637188418,0.0566126,119.91,119.89,8.3462]
[1741637188614,0.0566126,119.91,119.88,0.06258466]
[1741637189214,0.0566126,119.91,119.89,8.3466]
[1741637189420,0.0566126,119.91,119.88,0.06258466]
[1741637189816,8.4022126,119.91,119.88,0.06258466]
[1741637190411,8.346,119.9,119.88,0.06258466]
[1741637190617,0.0566126,119.91,119.78,89.29397753]
[1741637190618,90.58339114,119.89,119.78,89.29397753]
[1741637190820,39.60339114,119.83,119.78,89.29397753]
[1741637191020,2.4708,119.82,119.78,89.29397753]
[1741637191221,275.2,119.83,119.78,89.29397753]
[1741637191415,275.2,119.83,119.8,8.3528]
[1741637191629,275.263734,119.83,119.81,1.47437266]
[1741637191815,0.063734,119.83,119.8,0.05371091]
[1741637192021,0.063734,119.83,119.82,8.3515]
[1741637193527,0.063734,119.83,119.81,50.98]
[1741637193918,0.063734,119.83,119.8,0.05371091]
[1741637194716,8.352,119.82,119.8,0.05371091]
[1741637194921,0.063734,119.83,119.8,0.05371091]
[1741637195319,8.414834,119.83,119.8,0.05371091]
[1741637195626,0.063734,119.83,119.8,0.05371091]
[1741637196730,39.60339114,119.81,119.77,1.47411561]
[1741637197027,2.4025,119.8,119.78,1.47411561]
[1741637197227,2.4025,119.8,119.79,1.47411561]
[1741637197427,10.7554,119.8,119.76,8.3551]
[1741637197624,10.7554,119.8,119.73,4.9748]
[1741637197830,0.05708122,119.79,119.77,0.06320583]
[1741637198629,0.05708122,119.79,119.77,1.52632386]
[1741637198829,8.41068122,119.79,119.77,0.06320583]
[1741637199029,39.66047236,119.79,119.75,1.46385281]
[1741637199333,39.66047236,119.79,119.64,174.57673176]
[1741637199334,39.60339114,119.77,119.66,50.98]
[1741637199531,39.60339114,119.77,119.66,90.58339114]
[1741637200139,0.06358943,119.73,119.7,0.05387305]
[1741637200330,0.06358943,119.73,119.7,1.49603744]
[1741637200523,0.06358943,119.73,119.71,1.44216439]
[1741637200729,0.06358943,119.73,119.7,0.05387305]
[1741637202136,8.42178943,119.73,119.7,0.05387305]
[1741637202339,315.16698057,119.73,119.7,0.05387305]
[1741637202530,8.3592,119.71,119.69,1.43140212]
[1741637202727,8.3592,119.71,119.67,1.43140212]
[1741637202933,2.5011,119.72,119.68,1.43140212]
[1741637203135,275.5,119.73,119.67,1.43140212]
[1741637203334,275.5,119.73,119.68,1.43140212]
[1741637203536,275.5,119.73,119.69,1.43140212]
[1741637203734,0.05861232,119.72,119.69,0.05584368]
[1741637203931,0.05861232,119.72,119.71,8.3586]
[1741637204136,0.05861232,119.72,119.71,9.79000212]
[1741637204340,275.6,119.78,119.77,8.355]
[1741637204637,35.9596,119.79,119.74,50.98]
[1741637204828,35.9596,119.79,119.75,1.42965373]
[1741637205031,33.39,119.79,119.75,1.42965373]
[1741637205435,33.39,119.79,119.74,50.98]
[1741637205638,0.06364976,119.78,119.77,8.355]
[1741637206535,33.39,119.79,119.76,0.05851569]
[1741637206734,33.39,119.79,119.78,8.3543]
[1741637206934,33.39,119.79,119.78,59.3343]
[1741637207236,13.17,119.81,119.8,8.3529]
[1741637209034,13.17,119.81,119.79,0.06084101]
[1741637210439,13.17,119.81,119.74,50.94]
[1741637210637,2.4532,119.8,119.74,50.94]
[1741637211035,2.4532,119.8,119.71,50.94]
[1741637211333,8.3561,119.76,119.71,50.94]
[1741637211643,64.6002466,119.76,119.74,0.06215627]
[1741637211944,2.399,119.75,119.69,8.3602]
[1741637212446,2.399,119.75,119.65,50.94]
[1741637212636,2.399,119.75,119.68,8.361]
[1741637212838,340.2002466,119.74,119.65,50.94]
[1741637213143,0.06341442,119.73,119.7,0.05358654]
[1741637213342,2.60661442,119.73,119.65,50.94]
[1741637213546,8.3587,119.72,119.65,50.94]
[1741637213741,8.3587,119.72,119.67,8.3619]
[1741637213936,2.5432,119.73,119.65,50.94]
[1741637214651,0.05398158,119.7,119.68,0.05762075]
[1741637214841,0.05398158,119.7,119.64,50.94]
[1741637215040,0.05398158,119.7,119.66,8.3624]
[1741637215448,0.05398158,119.7,119.6,255.6002466]
[1741637215648,8.3612,119.69,119.61,50.92]
[1741637215848,115.5202466,119.72,119.61,50.92]
[1741637216049,0.05456838,119.66,119.64,0.05829138]
[1741637216347,8.3603,119.7,119.61,50.92]
[1741637216550,0.06296161,119.66,119.64,0.06242476]
[1741637216844,0.06296161,119.66,119.65,8.3633]
[1741637217547,0.06296161,119.66,119.64,0.06242476]
[1741637219453,0.06296161,119.66,119.64,8.42612476]
[1741637219644,0.06296161,119.66,119.64,0.06242476]
[1741637220450,0.06296161,119.66,119.61,8.3658]
[1741637220651,8.3637,119.65,119.56,64.6002466]
[1741637220949,64.6002466,119.66,119.59,8.3671]
[1741637221251,2.4488,119.64,119.56,115.5202466]
[1741637221560,0.05535813,119.61,119.59,0.0584567]
[1741637221860,69.6194466,119.68,119.59,0.0584567]
[1741637221861,5.0192,119.68,119.6,115.5202466]
[1741637222051,5.0192,119.68,119.66,8.3623]
[1741637222251,20.88,119.69,119.6,115.5202466]
[1741637222559,20.88,119.69,119.6,50.92]
[1741637222560,64.6002466,119.68,119.6,50.92]
[1741637222850,57.76381319,119.68,119.6,50.92]
[1741637223048,0.06161851,119.65,119.63,0.05319103]
[1741637223248,0.06161851,119.65,119.64,8.364]
[1741637224043,0.06161851,119.65,119.64,59.284]
[1741637224247,20.88,119.69,119.64,50.92]
[1741637224951,20.88,119.69,119.67,64.6002466]
[1741637225150,18.5707,119.69,119.68,50.92]
[1741637225449,18.5707,119.69,119.68,59.2812]
[1741637226649,5.0511,119.69,119.68,59.2812]
[1741637226951,8e-08,119.7,119.68,50.92]
[1741637227250,8e-08,119.7,119.69,8.3605]
[1741637228251,8e-08,119.7,119.69,10.8605]
[1741637229456,8e-08,119.7,119.69,8.3605]
[1741637229753,8e-08,119.7,119.69,10.8605]
[1741637229956,8e-08,119.7,119.69,8.3605]
[1741637230757,8e-08,119.7,119.68,8.3609]
[1741637231256,8e-08,119.7,119.67,0.05583303]
[1741637231555,8e-08,119.7,119.69,8.3605]
[1741637233657,8e-08,119.7,119.68,8.3609]
[1741637233959,8e-08,119.7,119.67,0.05583303]
[1741637234555,8e-08,119.7,119.69,8.3605]
[1741637235558,8e-08,119.7,119.67,0.05583303]
[1741637235759,6.86910814,119.7,119.67,0.05583303]
[1741637236161,6.86910814,119.7,119.68,8.3607]
[1741637236363,6.86910814,119.7,119.67,0.05583303]
[1741637236564,6.86910806,119.69,119.67,0.05583303]
[1741637237065,8e-08,119.7,119.67,0.05583303]
[1741637237774,8e-08,119.7,119.69,8.3605]
[1741637238472,8e-08,119.7,119.67,0.05583303]
[1741637238673,8e-08,119.7,119.68,8.3612]
[1741637239470,6.85040839,119.69,119.68,8.3612]
[1741637240471,6.85040839,119.69,119.67,8.41743303]
[1741637240771,8e-08,119.7,119.67,0.05583303]
[1741637241475,13.29684946,119.69,119.67,0.05583303]
[1741637241674,17.27859129,119.69,119.67,0.05583303]
[1741637241869,8.91739129,119.69,119.67,0.05583303]
[1741637242070,8.3612,119.68,119.67,0.05583303]
[1741637242270,15.19419129,119.68,119.64,8.3637]
[1741637242576,6.83299129,119.68,119.6,39.82444325]
[1741637242775,6.83299129,119.67,119.61,50.8]
[1741637243380,0.0544208,119.65,119.63,0.05529457]
[1741637244278,0.0544208,119.65,119.64,8.364]
[1741637244577,20.88,119.68,119.63,0.05529457]
[1741637244771,20.88,119.68,119.67,8.3619]
[1741637245571,20.88,119.68,119.65,50.8]
[1741637245772,20.88,119.68,119.66,0.05638052]
[1741637247073,20.88,119.68,119.67,8.3619]
[1741637247778,20.88,119.68,119.66,8.41868052]
[1741637248374,20.88,119.68,119.67,8.3619]
[1741637249582,20.88,119.68,119.66,8.41878052]
[1741637249779,20.88,119.68,119.66,0.05638052]
[1741637250780,20.88,119.68,119.67,8.3619]
[1741637251171,20.88,119.68,119.66,0.05638052]
[1741637251783,8.3059,119.68,119.67,8.3619]
[1741637251976,0.06130244,119.69,119.66,39.88082377]
[1741637252176,2.44e-06,119.69,119.66,39.88082377]
[1741637252378,2.44e-06,119.69,119.68,8.3612]
[1741637254183,21.32670244,119.71,119.67,39.82444325]
[1741637254781,0.44670244,119.71,119.67,39.82444325]
[1741637255385,9.646e-05,119.7,119.69,8.3605]
[1741637255585,9.646e-05,119.7,119.69,59.1005]
[1741637256082,20.58780781,119.81,119.69,90.56444325]
[1741637256280,2.2202,119.78,119.71,39.82444325]
[1741637256480,4.95901399,119.77,119.71,39.82444325]
[1741637256682,2.2202,119.78,119.71,39.82444325]
[1741637257187,2.2202,119.78,119.77,8.355]
[1741637257381,10.5746,119.78,119.75,50.74]
[1741637257583,17.43973394,119.78,119.76,0.05817672]
[1741637257777,6.86513394,119.77,119.76,0.05817672]
[1741637258086,15.22013394,119.77,119.76,0.05817672]
[1741637258287,15.22013394,119.77,119.72,50.72]
[1741637258682,6.86513394,119.77,119.72,50.72]
[1741637258885,6.86513394,119.76,119.75,8.3564]
[1741637260485,0.06252965,119.77,119.76,8.3557]
[1741637260685,0.06252965,119.77,119.74,0.05645453]
[1741637261283,11.79722264,119.76,119.72,50.7]
[1741637261486,11.79722264,119.75,119.69,50.7]
[1741637261678,8.3574,119.74,119.71,8.3587]
[1741637261988,6.84984643,119.73,119.71,8.3587]
[1741637262483,6.84984643,119.72,119.71,8.42153577]
[1741637262883,0.06070562,119.73,119.71,0.06233577]
[1741637263080,0.06070562,119.73,119.72,8.3585]
[1741637263390,6.91302435,119.73,119.72,8.3585]
[1741637263877,0.06070562,119.73,119.72,8.3585]
[1741637265380,5.62e-06,119.73,119.72,8.3585]
[1741637265588,2.2202,119.78,119.77,8.355]
[1741637265791,7.16943501,119.78,119.77,8.355]
[1741637265982,9.07233877,119.78,119.77,8.355]
[1741637266182,6.85213877,119.78,119.77,8.355]
[1741637266379,11.19,119.81,119.77,8.355]
[1741637266588,5.9705,119.84,119.77,39.82444325]
[1741637266786,1.81,119.84,119.8,39.82444325]
[1741637266988,1.81,119.84,119.83,8.3508]
[1741637267189,1.81,119.84,119.81,50.66]
[1741637267991,1.8682426,119.84,119.81,50.71562036]
[1741637268396,1.8682426,119.84,119.83,8.3508]
[1741637268594,4.26e-05,119.84,119.83,8.3508]
[1741637268798,4.3531,119.89,119.82,39.82444325]
[1741637268993,4.3531,119.89,119.87,8.3477]
[1741637269792,4.3531,119.89,119.86,50.64]
[1741637269994,4.41582219,119.89,119.87,0.06245693]
[1741637270190,12.76262219,119.89,119.87,0.06245693]
[1741637270388,4.41582219,119.89,119.87,0.06245693]
[1741637270593,4.41582219,119.89,119.86,50.64]
[1741637270790,8.3487,119.86,119.84,50.62]
[1741637270985,4.3531,119.89,119.82,50.62]
[1741637271193,4.3531,119.89,119.82,90.44444325]
[1741637271394,4.3531,119.89,119.84,39.82444325]
[1741637271594,4.3531,119.89,119.86,8.3482]
[1741637271796,0.05485819,119.88,119.86,58.9682]
[1741637272297,0.05485819,119.88,119.86,50.62]
[1741637272700,0.05485819,119.88,119.85,0.06242531]
[1741637272896,8.40235819,119.88,119.85,0.06242531]
[1741637273198,0.05485819,119.88,119.85,0.06242531]
[1741637273995,0.05485819,119.88,119.86,8.3483]
[1741637274498,0.05485819,119.88,119.87,8.348]
[1741637275302,0.05485819,119.88,119.87,58.928]
[1741637276994,5.819e-05,119.88,119.87,58.908]
[1741637279598,8.3426,119.95,119.87,50.56]
[1741637279798,6.1646,119.97,119.9,39.82444325]
[1741637280003,4.0255,119.97,119.91,50.52]
[1741637280210,2.0256,119.97,119.96,8.3417]
[1741637280395,2.0256,119.97,119.92,39.82444325]
[1741637280600,2.0256,119.97,119.91,50.52]
[1741637280801,0.05805971,119.96,119.93,8.39794883]
[1741637281308,0.05805971,119.96,119.94,8.343]
[1741637281604,0.05805971,119.96,119.95,50.52]
[1741637282105,0.05805971,119.96,119.95,58.8624]
[1741637282409,4.0255,120.01,119.95,50.52]
[1741637282802,316.61477562,120.1,119.98,39.82444325]
[1741637282999,2.0721,120.07,119.99,50.5]
[1741637283201,2.0721,120.07,120.02,8.3371]
[1741637283402,0.06017919,120.04,120.02,8.39701731]
[1741637283901,0.06017919,120.04,120.03,8.3369]
[1741637284503,0.06017919,120.04,120.02,0.05991731]
[1741637285001,2.1231,120.09,120.03,50.48]
[1741637285206,2.0935,120.13,120.07,39.82444325]
[1741637285507,2.0133,120.15,120.09,39.82444325]
[1741637285908,2.0133,120.15,120.11,8.3307]
[1741637286410,0.06391202,120.14,120.12,0.0592558]
[1741637288313,0.06391202,120.14,120.12,39.88369905]
[1741637288807,0.06391202,120.14,120.13,8.3299]
[1741637289202,0.06391202,120.14,120.12,39.88369905]
[1741637289510,0.06391202,120.14,120.12,0.0592558]
[1741637291810,8.3299,120.13,120.12,0.0592558]
[1741637292208,0.06391202,120.14,120.12,0.0592558]
[1741637292416,8.39341202,120.14,120.12,0.0592558]
[1741637292713,0.06391202,120.14,120.12,0.0592558]
[1741637293310,0.06391202,120.14,120.12,39.88369905]
[1741637293612,2.17,120.18,120.17,8.3272]
[1741637293816,6.3268,120.29,120.17,53.35444325]
[1741637294007,8.3218,120.25,120.19,39.82444325]
[1741637294211,6.3268,120.29,120.17,50.85444325]
[1741637294413,39.82444325,120.28,120.17,50.85444325]
[1741637294612,0.06210265,120.24,120.22,0.06211744]
[1741637294807,39.8865459,120.24,120.13,50.34]
[1741637295006,2.1088,120.23,120.13,90.16444325]
[1741637295209,8.3247,120.21,120.17,8.3268]
[1741637295507,4.1187,120.22,120.13,90.16444325]
[1741637295705,8.3253,120.2,120.13,90.16444325]
[1741637295907,0.05471213,120.19,120.16,0.05326499]
[1741637296412,0.05471213,120.19,120.1,50.34]
[1741637296606,39.82444325,120.14,120.05,119.31932596]
[1741637296813,4.2504,120.13,120.01,50.32]
[1741637297014,39.82444325,120.12,120.01,50.32]
[1741637297723,0.0600542,120.08,120.05,0.05915814]
[1741637298014,8.3936542,120.08,120.05,0.05915814]
[1741637298215,0.0600542,120.08,120.05,0.05915814]
[1741637302322,0.0600542,120.08,120.05,50.33915814]
[1741637303223,0.0600542,120.08,120.07,8.3341]
[1741637303425,2.021,120.12,120.06,64.32614952]
[1741637304120,2.021,120.12,120.05,50.28]
[1741637304121,2.1416,120.13,120.08,64.32614952]
[1741637304422,2.0969,120.16,120.09,50.28]
[1741637304623,0.05800304,120.12,120.09,50.33856822]
[1741637304825,0.05800304,120.12,120.1,8.332]
[1741637305026,0.05800304,120.12,120.09,50.33856822]
[1741637305617,0.05800304,120.12,120.09,50.31856822]
[1741637305824,0.05800304,120.12,120.09,0.05856822]
[1741637306225,0.05800304,120.12,120.1,50.26]
[1741637306426,0.05800304,120.12,120.11,8.3313]
[1741637306624,0.05800304,120.12,120.1,50.26]
[1741637306822,0.05800304,120.12,120.09,0.05856822]
[1741637307222,0.05800304,120.12,120.1,8.3316]
[1741637307626,0.05800304,120.12,120.09,0.05856822]
[1741637307829,8.38860304,120.12,120.09,0.05856822]
[1741637308321,1.9752,120.11,120.09,0.05856822]
[1741637309128,1.9752,120.11,120.05,50.24]
[1741637310223,0.05411421,120.09,120.07,0.05682705]
[1741637310430,0.05411421,120.09,120.08,8.3334]
[1741637310630,0.05411421,120.09,120.07,0.05682705]
[1741637311529,8.38721421,120.09,120.05,50.24]
[1741637311920,8.38721421,120.09,120.05,58.5751]
[1741637312326,8.38721421,120.09,120.02,64.32614952]
[1741637312525,8.38721421,120.09,120.05,8.3348]
[1741637312721,0.05411421,120.09,120.04,0.06193535]
[1741637313231,0.05411421,120.09,120.08,8.3334]
[1741637316025,0.05411421,120.09,120.07,0.05790129]
[1741637316734,0.05411421,120.09,120.08,8.3334]
[1741637317237,0.05411421,120.09,120.07,8.39170129]
[1741637317930,0.05411421,120.09,120.06,8.3344]
[1741637318338,0.05411421,120.09,120.03,50.18]
[1741637319036,8.38711421,120.09,120.06,8.3348]
[1741637319743,8.3339,120.08,120.05,8.39261947]
[1741637320131,0.05411421,120.09,120.05,0.05751947]
[1741637320332,8.3339,120.08,120.05,0.05751947]
[1741637320739,8.3342,120.07,120.05,0.05751947]
[1741637320935,0.05411421,120.09,120.05,0.05751947]
[1741637321438,6.49844081,120.08,120.05,0.05751947]
[1741637321637,6.49844081,120.08,120.03,8.3366]